fUSD/lending_fUSD_20250401
["ID","MTS","AMOUNT","RATE_DAILY","PERIOD"]
[356990615,1743539432737,-999.99,0.00014999,2]
[356990616,1743539432747,-150.99,0.00014999,2]
[356990617,1743539432756,-167.30083596,0.00014999,2]
[356990618,1743539432765,-524.0,0.00015,2]
[356990619,1743539432775,-86741.77348989,0.00015,2]
[356990620,1743539432790,-542.16718762,0.00015,2]
[356990632,1743539438333,-430.885,0.00015,2]
[356990633,1743539438345,-713.93834854,0.00015,2]
[356990634,1743539438395,-419.515,0.00015,2]
[356990635,1743539438453,-428.7000009,0.00015,2]
[356990636,1743539438464,-1677.819315,0.00015,2]
[356990637,1743539438476,-5784.85,0.00015,2]
[356990638,1743539438510,-328961.10880558,0.00015,2]
[356990639,1743539438520,-334.99864947,0.00015,2]
[356990640,1743539438529,-200.0,0.00015,2]
[356990641,1743539438538,-200.0,0.00015,2]
[356990642,1743539438547,-70749.51821939,0.00015,2]
[356990652,1743539440504,-1907.61631091,0.00015,2]
[356990653,1743539440516,-4287.36,0.00015,2]
[356990654,1743539440527,-3070.5981233,0.00015,2]
[356990655,1743539440540,-4277.0,0.00015,2]
[356990656,1743539440614,-3622.44119754,0.000149,2]
[356990657,1743539440624,-2283796.96092269,0.00015,2]
[356990658,1743539440634,-2371008.15810796,0.00015,2]
[356990659,1743539440646,-253.26374002,0.00015,2]
[356990660,1743539440677,-591.39,0.00015,2]
[356990661,1743539440786,-4419.73345387,0.00015,2]
[356990662,1743539440899,-495.02,0.00015,2]
[356990663,1743539440960,-493.80144382,0.00015,2]
[356990684,1743539443518,-279.67111661,0.00015,2]
[356990686,1743539445375,-25935.52825494,0.00015,2]
[356990688,1743539446371,-981.52816192,0.00015,2]
[356990689,1743539446486,-1470526.57040259,0.00015,2]
[356990690,1743539446496,-715.49370541,0.00015,2]
[356990691,1743539446506,-200.0,0.00015,2]
[356990692,1743539446516,-1982.7469525,0.00015028,2]
[356990693,1743539446526,-500.0,0.00015041,2]
[356990694,1743539446535,-500.0,0.00015041,2]
[356990695,1743539446544,-500.0,0.00015041,2]
[356990696,1743539446554,-500.0,0.00015041,2]
[356990697,1743539446564,-212.0,0.00015041,2]
[356990698,1743539446573,-500.0,0.00015041,2]
[356990699,1743539446583,-158.47,0.00015052,2]
[356990700,1743539446592,-158.47,0.00015059,2]
[356990701,1743539446602,-200.0,0.00015059,2]
[356990702,1743539446611,-200.0,0.00015063,2]
[356990703,1743539446621,-158.47,0.00015065,2]
[356990704,1743539446630,-500.0,0.00015068,2]
[356990705,1743539446640,-158.47,0.00015071,2]
[356990706,1743539446649,-158.47,0.00015078,2]
[356990707,1743539446659,-166.66,0.00015078,2]
[356990708,1743539446670,-158.47,0.00015084,2]
[356990709,1743539446680,-158.47,0.0001509,2]
[356990710,1743539446689,-12496.85418982,0.00015096,2]
[356990711,1743539446699,-158.47,0.00015096,2]
[356990712,1743539446709,-158.47,0.00015103,2]
[356990713,1743539446719,-158.47,0.00015109,2]
[356990714,1743539446729,-158.47,0.00015115,2]
[356990715,1743539446739,-158.47,0.00015121,2]
[356990716,1743539446748,-500.0,0.00015123,2]
[356990717,1743539446758,-158.47,0.00015128,2]
[356990718,1743539446768,-1607.45,0.00015139,2]
[356990719,1743539446778,-1607.45,0.00015142,2]
[356990720,1743539446788,-1607.45,0.00015146,2]
[356990721,1743539446798,-200.0,0.0001515,2]
[356990722,1743539446808,-200.0,0.0001515,2]
[356990723,1743539446817,-1607.45,0.0001515,2]
[356990724,1743539446827,-1607.45,0.00015154,2]
[356990725,1743539446836,-1607.45,0.00015158,2]
[356990726,1743539446846,-1607.45,0.00015162,2]
[356990727,1743539446855,-1607.45,0.00015166,2]
[356990728,1743539446865,-1607.45,0.0001517,2]
[356990729,1743539446874,-1607.45,0.00015174,2]
[356990730,1743539446883,-493.0,0.00015178,2]
[356990731,1743539446892,-1607.45,0.00015178,2]
[356990732,1743539446902,-1607.45,0.00015182,2]
[356990733,1743539446911,-1607.45,0.00015186,2]
[356990734,1743539446921,-1607.45,0.0001519,2]
[356990735,1743539446931,-1607.45,0.00015194,2]
[356990736,1743539446943,-1607.45,0.00015198,2]
[356990737,1743539446953,-1607.45,0.00015202,2]
[356990738,1743539446962,-1607.45,0.00015206,2]
[356990739,1743539446971,-1607.45,0.0001521,2]
[356990740,1743539446981,-1607.45,0.00015214,2]
[356990741,1743539446991,-500.0,0.0001526,2]
[356990742,1743539447000,-166.66,0.00015269,2]
[356990743,1743539447010,-200.0,0.00015301,2]
[356990744,1743539447019,-328.46596738,0.00015336,2]
[356990745,1743539447028,-300.0,0.00015448,2]
[356990746,1743539447038,-200.0,0.00015455,2]
[356990747,1743539447047,-500.0,0.00015479,2]
[356990748,1743539447057,-200.0,0.00015609,2]
[356990749,1743539447066,-166.66,0.00015675,2]
[356990750,1743539447075,-166.66,0.00015773,2]
[356990751,1743539447088,-455.0,0.00015808,2]
[356990752,1743539447098,-1000.0,0.00015816,2]
[356990753,1743539447107,-6821.81,0.00016116,2]
[356990754,1743539447117,-5685.72,0.00016116,2]
[356990755,1743539447127,-13050.48,0.00016116,2]
[356990756,1743539447136,-161.28,0.00016155,2]
[356990757,1743539447146,-166.66,0.00016273,2]
[356990758,1743539447156,-166.66,0.00016277,2]
[356990759,1743539447165,-150.0,0.00016379,2]
[356990760,1743539447176,-150.0,0.00016379,2]
[356990761,1743539447185,-1377.49,0.00016669,2]
[356990762,1743539447195,-435.07,0.00016692,2]
[356990763,1743539447204,-166.66,0.00016781,2]
[356990764,1743539447213,-300.0,0.00016818,2]
[356990765,1743539447223,-166.66,0.0001687,2]
[356990766,1743539447232,-283.21,0.00016873,2]
[356990767,1743539447242,-340.43344067,0.00016928,2]
[356990768,1743539447251,-166.66,0.00017285,2]
[356990769,1743539447260,-161.28,0.00017398,2]
[356990770,1743539447270,-1000.0,0.00017573,2]
[356990771,1743539447279,-166.66,0.00017789,2]
[356990772,1743539447289,-600.0,0.00017808,2]
[356990773,1743539447299,-900.0,0.000183,3]
[356990774,1743539447308,-20658.03,0.00018356,2]
[356990775,1743539447318,-435.07,0.00018546,2]
[356990776,1743539447328,-161.28,0.00018641,2]
[356990777,1743539447338,-283.21,0.00018748,2]
[356990778,1743539447347,-5553.0,0.000189,5]
[356990779,1743539447357,-1377.49,0.00018932,2]
[356990780,1743539447366,-500.0,0.00018973,2]
[356990781,1743539447375,-536.66423702,0.00018973,2]
[356990782,1743539447386,-253.33577126,0.00018973,2]
[356990783,1743539447396,-500.0,0.00018973,2]
[356990784,1743539447405,-500.0,0.00018973,2]
[356990785,1743539447415,-500.0,0.00018973,2]
[356990786,1743539447426,-500.0,0.00018973,2]
[356990787,1743539447435,-500.04215306,0.00018973,2]
[356990788,1743539447445,-500.52002148,0.00018973,2]
[356990789,1743539447454,-500.0,0.00018973,2]
[356990790,1743539447464,-470.25582542,0.00018973,2]
[356990791,1743539447473,-500.0,0.00018973,2]
[356990792,1743539447482,-500.6920515,0.00018973,2]
[356990793,1743539447492,-500.0,0.00018973,2]
[356990794,1743539447502,-25770.55385097,0.00019,2]
[356990795,1743539447511,-969.91,0.00019,2]
[356990796,1743539447521,-97422.43106327,0.00019,2]
[356990797,1743539447531,-257.65988705,0.00019,2]
[356990798,1743539447540,-1000.0,0.00019331,2]
[356990799,1743539447549,-2519.51,0.00019679,2]
[356990800,1743539447559,-161.28,0.00019883,2]
[356990801,1743539447569,-223.0,0.000199,2]
[356990802,1743539447579,-514.0,0.0001997,2]
[356990803,1743539447588,-1011.93527606,0.00019999,5]
[356990804,1743539447598,-7500.0,0.0002,2]
[356990805,1743539447608,-45981.87032513,0.0002,2]
[356990806,1743539447617,-6653.0,0.0002,2]
[356990807,1743539447626,-5116.06779267,0.0002,2]
[356990808,1743539447636,-3950.0,0.0002,2]
[356990809,1743539447645,-1246.57510067,0.0002,2]
[356990810,1743539447655,-11793.71440985,0.0002,2]
[356990811,1743539447664,-1005.81497907,0.0002,2]
[356990812,1743539447675,-1741.21411239,0.0002,2]
[356990813,1743539447685,-447.17206569,0.0002,4]
[356990814,1743539447694,-20030.79827645,0.0002,4]
[356990815,1743539447717,-532.66186025,0.0002,4]
[356990816,1743539447731,-1996.47273271,0.0002,4]
[356990818,1743539462745,-200.0,0.00019999,2]
[356990819,1743539475478,-179.37153089,0.000149,2]
[356990820,1743539486614,-152.37,0.000149,2]
[356990821,1743539496433,-150.0,0.00014899,2]
[356990823,1743539516882,161.69,0.00013699,2]
[356990824,1743539519524,-458.4305499,0.00014899,2]
[356990825,1743539531031,-150.0,0.00014899,2]
[356990826,1743539536574,-152.2840724,0.00014899,2]
[356990827,1743539543038,-150.0,0.00014899,2]
[356990828,1743539557095,-212.98324344,0.00014899,2]
[356990829,1743539577434,-150.0,0.00014899,2]
[356990830,1743539581932,-212.98324344,0.00014899,2]
[356990831,1743539585918,-57.05759082,0.00014899,2]
[356990832,1743539585941,-92.94240918,0.00014899,2]
[356990833,1743539592363,-207.05759082,0.00014899,2]
[356990834,1743539592386,-86.96526823,0.00014899,2]
[356990835,1743539617467,-63.03473177,0.00014899,2]
[356990836,1743539617491,-86.96526823,0.00014899,2]
[356990837,1743539621479,-63.03473177,0.00014899,2]
[356990838,1743539621503,-236.96526823,0.000149,2]
[356990839,1743539631174,-150.0,0.000149,2]
[356990840,1743539640925,-150.0,0.000149,2]
[356990841,1743539666161,-131.29320088,0.000149,2]
[356990842,1743539666184,-18.70679912,0.000149,2]
[356990843,1743539761933,-150.0,0.00014899,2]
[356990844,1743539764003,-150.0,0.00014899,2]
[356990845,1743539944090,-150.0,0.00014899,2]
[356990846,1743540002511,-150.0,0.00014899,2]
[356990847,1743540002533,-9.78791192,0.00014899,2]
[356990848,1743540004866,-150.0,0.00014899,2]
[356990849,1743540035688,174.02,0.00024964,120]
[356990850,1743540035893,174.02,0.00027461,120]
[356990851,1743540036114,174.02,0.00029957,120]
[356990852,1743540040996,-140.21208808,0.00014899,2]
[356990853,1743540041019,-36.36705012,0.000149,2]
[356990854,1743540122712,-150.99,0.00014899,2]
[356990855,1743540161192,-149.01,0.00014899,2]
[356990856,1743540161214,-65.85367231,0.00014899,2]
[356990857,1743540169010,-84.14632769,0.00014899,2]
[356990858,1743540169033,-105.22935135,0.000149,2]
[356990860,1743540246611,-237.003082,0.00014899,2]
[356990861,1743540362080,-150.0,0.00014899,2]
[356990862,1743540362105,-19.719,0.00014899,2]
[356990863,1743540401078,-155.76,0.00014899,2]
[356990864,1743540424105,-150.0,0.00014899,2]
[356990865,1743540466441,150.0,0.00014059,2]
[356990866,1743540486460,384.83409102,0.0003,30]
[356990867,1743540504878,-150.0,0.00014899,2]
[356990868,1743540504903,-839.69679941,0.000149,2]
[356990869,1743540504926,-216.26720059,0.000149,2]
[356990874,1743540631516,-283.73279941,0.000149,2]
[356990875,1743540631526,-17249.94949527,0.000149,2]
[356990876,1743540631541,-494.7767235,0.000149,2]
[356990877,1743540631569,-5248.78995177,0.000149,2]
[356990878,1743540631732,-12939.61442946,0.000149,2]
[356990879,1743540631742,-150.0,0.00015114,2]
[356990880,1743540631751,-494.43482851,0.00015328,2]
[356990881,1743540631760,-249.29,0.00015428,2]
[356990882,1743540631770,-788.619,0.0001592,2]
[356990883,1743540631779,-150.0,0.0001639,2]
[356990884,1743540631791,-249.29,0.00016798,2]
[356990886,1743540631801,-1101.99,0.00016873,2]
[356990888,1743540631811,-338.91207798,0.00016922,2]
[356990890,1743540631820,-494.4348285,0.00017497,2]
[356990892,1743540631829,-150.0,0.00017726,2]
[356990894,1743540631839,-150.0,0.00018692,7]
[356990895,1743540631848,-196.2,0.00018739,2]
[356990896,1743540631858,-6124.56,0.00018739,2]
[356990897,1743540631867,-150.99,0.00018739,2]
[356990898,1743540631880,-7747.66361024,0.00018814,2]
[356990961,1743540637483,-5462.43173528,0.00015,2]
[356991008,1743541040973,188.8,0.00014059,2]
[356991009,1743541167211,-297.17206569,0.00014873,2]
[356991010,1743541193744,159.75147,0.00018814,21]
[356991011,1743541229885,5000.0,0.00014059,2]
[356991012,1743541238691,-291.94164525,0.00014872,2]
[356991013,1743541259014,903.04,0.00014059,2]
[356991014,1743541272135,494.4348285,0.000148,2]
[356991015,1743541301996,984.62,0.00034216,30]
[356991016,1743541302254,815.02582548,0.00034216,30]
[356991017,1743541304833,291.0,0.00034216,120]
[356991018,1743541322063,-208.05835475,0.00014872,2]
[356991019,1743541322087,-10.30560283,0.00014872,2]
[356991020,1743541323878,151.0,0.00034216,30]
[356991021,1743541324528,156.587,0.00034216,30]
[356991022,1743541325180,162.380719,0.00034216,30]
[356991023,1743541325870,168.3888056,0.00034216,30]
[356991024,1743541326433,174.61919141,0.00034216,30]
[356991025,1743541327063,181.08010149,0.00034216,30]
[356991026,1743541327695,187.78006525,0.00034216,30]
[356991027,1743541328359,194.72792766,0.00034216,30]
[356991028,1743541329123,201.93286099,0.00034216,30]
[356991029,1743541329558,209.40437684,0.00034216,30]
[356991030,1743541330878,217.15233878,0.00034216,30]
[356991031,1743541331540,225.18697532,0.00034216,30]
[356991032,1743541332177,233.51889341,0.00034216,30]
[356991033,1743541332844,242.15909246,0.00034216,30]
[356991034,1743541333480,251.11897888,0.00034216,30]
[356991035,1743541334663,260.4103811,0.00034216,30]
[356991036,1743541335338,270.0455652,0.00034216,30]
[356991037,1743541336011,280.03725112,0.00034216,30]
[356991038,1743541336634,290.39862941,0.00034216,30]
[356991039,1743541337257,290.39862941,0.00034216,30]
[356991040,1743541344194,151.0,0.00034216,30]
[356991041,1743541344781,156.587,0.00034216,30]
[356991042,1743541345406,162.380719,0.00034216,30]
[356991043,1743541346173,168.3888056,0.00034216,30]
[356991044,1743541346662,174.61919141,0.00034216,30]
[356991045,1743541347288,181.08010149,0.00034216,30]
[356991046,1743541347897,187.78006525,0.00034216,30]
[356991047,1743541348540,194.72792766,0.00034216,30]
[356991048,1743541349186,201.93286099,0.00034216,30]
[356991049,1743541349842,209.40437684,0.00034216,30]
[356991050,1743541350468,217.15233878,0.00034216,30]
[356991051,1743541351099,225.18697532,0.00034216,30]
[356991052,1743541351737,233.51889341,0.00034216,30]
[356991053,1743541352352,242.15909246,0.00034216,30]
[356991054,1743541353095,251.11897888,0.00034216,30]
[356991055,1743541353732,260.4103811,0.00034216,30]
[356991056,1743541354355,270.0455652,0.00034216,30]
[356991057,1743541354983,280.03725112,0.00034216,30]
[356991058,1743541355616,290.39862941,0.00034216,30]
[356991059,1743541356354,290.39862941,0.00034216,30]
[356991060,1743541362172,150.0,0.00034216,30]
[356991061,1743541374068,773.33,0.00014059,2]
[356991062,1743541399627,-150.02065061,0.00014863,2]
[356991201,1743541429758,368.38460819,0.000148,2]
[356991202,1743541433549,-415.67484192,0.00014863,2]
[356991203,1743541433577,-393.13025879,0.00014872,2]
[356991204,1743541433604,-691.19489929,0.00014873,2]
[356991205,1743541434077,200.0,0.00014059,2]
[356991206,1743541434488,-1500.0,0.00014873,2]
[356991207,1743541434932,-150.0,0.00014873,2]
[356991208,1743541443366,-162.006918,0.00014872,2]
[356991209,1743541450186,-137.993082,0.00014872,2]
[356991210,1743541450218,-1502.006918,0.00014873,2]
[356991211,1743541450972,-206.83142584,0.00014873,2]
[356991212,1743541453586,748.10836088,0.00034208,60]
[356991213,1743541461997,-150.0,0.00014872,2]
[356991214,1743541487587,487.39224005,0.00014999,5]
[356991215,1743541502341,1023.37525355,0.00034208,30]
[356991216,1743541502459,150.0,0.00014059,7]
[356991217,1743541503291,188.24,0.00034208,30]
[356991218,1743541503322,1657.10178368,0.00034208,120]
[356991219,1743541503354,2096.0661643,0.00034208,120]
[356991220,1743541503424,696.17672658,0.00034208,30]
[356991221,1743541503474,425.9665,0.00014773,2]
[356991222,1743541504597,-56.83142584,0.00014872,2]
[356991223,1743541504623,-93.16857416,0.00014872,2]
[356991224,1743541530388,157.85898454,0.0003,30]
[356991225,1743541544680,1000.0,0.00034208,30]
[356991226,1743541545278,1000.0,0.00034208,30]
[356991227,1743541546300,1000.0,0.00034208,30]
[356991228,1743541546889,1000.0,0.00034208,30]
[356991229,1743541547588,1000.0,0.00034208,30]
[356991230,1743541548180,1000.0,0.00034208,30]
[356991231,1743541548859,1000.0,0.00034208,30]
[356991232,1743541549443,1000.0,0.00034208,30]
[356991233,1743541550042,1000.0,0.00034208,30]
[356991234,1743541550609,1000.0,0.00034208,30]
[356991235,1743541551394,1000.0,0.00034208,30]
[356991236,1743541552495,1000.0,0.00034208,30]
[356991237,1743541553064,1000.0,0.00034208,30]
[356991238,1743541553639,1000.0,0.00034208,30]
[356991239,1743541554209,1000.0,0.00034208,30]
[356991240,1743541554798,1000.0,0.00034208,30]
[356991241,1743541555405,1000.0,0.00034208,30]
[356991242,1743541555970,1000.0,0.00034208,30]
[356991243,1743541556544,1000.0,0.00034208,30]
[356991244,1743541557133,1000.0,0.00034208,30]
[356991245,1743541557708,1000.0,0.00034208,30]
[356991246,1743541558275,1000.0,0.00034208,30]
[356991247,1743541558859,1000.0,0.00034208,30]
[356991248,1743541559446,1000.0,0.00034208,30]
[356991249,1743541560459,1000.0,0.00034208,30]
[356991250,1743541560997,1000.0,0.00034208,30]
[356991251,1743541562438,1000.0,0.00034208,30]
[356991252,1743541562507,-187.52852536,0.00014872,2]
[356991253,1743541563018,1000.0,0.00034208,30]
[356991254,1743541563651,1000.0,0.00034208,30]
[356991255,1743541564254,723.73085781,0.00034208,30]
[356991256,1743541623768,151.0,0.00034208,30]
[356991257,1743541624557,156.587,0.00034208,30]
[356991258,1743541625393,162.380719,0.00034208,30]
[356991259,1743541626037,168.3888056,0.00034208,30]
[356991260,1743541626697,174.61919141,0.00034208,30]
[356991261,1743541627369,181.08010149,0.00034208,30]
[356991262,1743541628006,187.78006525,0.00034208,30]
[356991263,1743541628655,194.72792766,0.00034208,30]
[356991264,1743541629282,201.93286099,0.00034208,30]
[356991265,1743541629905,209.40437684,0.00034208,30]
[356991266,1743541630511,217.15233878,0.00034208,30]
[356991267,1743541631700,217.15233878,0.00034208,30]
[356991268,1743541638605,151.0,0.00034208,30]
[356991269,1743541639251,156.587,0.00034208,30]
[356991270,1743541639861,162.380719,0.00034208,30]
[356991271,1743541641082,168.3888056,0.00034208,30]
[356991272,1743541642346,174.61919141,0.00034208,30]
[356991273,1743541643022,181.08010149,0.00034208,30]
[356991274,1743541643660,187.78006525,0.00034208,30]
[356991275,1743541644273,194.72792766,0.00034208,30]
[356991276,1743541645004,201.93286099,0.00034208,30]
[356991277,1743541645544,209.40437684,0.00034208,30]
[356991278,1743541646197,217.15233878,0.00034208,30]
[356991279,1743541646824,225.18697532,0.00034208,30]
[356991280,1743541647465,233.51889341,0.00034208,30]
[356991281,1743541648099,233.51889341,0.00034208,30]
[356991282,1743541686150,-150.0,0.00014872,2]
[356991283,1743541694161,-150.0,0.00014872,2]
[356991284,1743541694185,-106096.93591418,0.00014873,2]
[356991285,1743541694216,-9698.1227,0.000149,2]
[356991286,1743541694244,-599.786,0.000149,2]
[356991287,1743541694268,-4527.9475,0.000149,2]
[356991288,1743541694291,-500.0,0.000149,2]
[356991289,1743541694313,-1154.7724,0.000149,2]
[356991290,1743541694335,-2252.3833,0.000149,2]
[356991291,1743541694358,-1573.4488,0.000149,2]
[356991292,1743541694380,-208.0923,0.000149,2]
[356991293,1743541694403,-1136.9363,0.000149,2]
[356991294,1743541694426,-2500.0,0.000149,2]
[356991295,1743541694449,-1000.0,0.000149,2]
[356991296,1743541694471,-829.199,0.000149,2]
[356991297,1743541694494,-160.41158356,0.00014958,2]
[356991298,1743541694517,-5091.21763268,0.00014958,2]
[356991299,1743541694539,-205.02115952,0.00014958,2]
[356991300,1743541694562,-7659.94474325,0.00014958,2]
[356991301,1743541694584,-500.0,0.00014973,2]
[356991302,1743541694606,-444.02285905,0.00014973,2]
[356991303,1743541694630,-2006712.75780776,0.00015,2]
[356991304,1743541707718,-229.87709353,0.00014872,2]
[356991312,1743541831731,-624.71325753,0.000149,2]
[356991313,1743541832010,-958.81707067,0.000149,2]
[356991314,1743541832022,-547.87939164,0.000149,2]
[356991315,1743541832033,-34831.96808016,0.000149,2]
[356991316,1743541832043,-218.3966,0.000149,2]
[356991317,1743541832052,-1000.0,0.000149,2]
[356991318,1743541832062,-349.01,0.000149,2]
[356991319,1743541832071,-500.0,0.000149,2]
[356991320,1743541832081,-300.8311,0.000149,2]
[356991321,1743541832090,-2500.0,0.000149,2]
[356991322,1743541832099,-454.4224,0.000149,2]
[356991323,1743541832109,-548.4428,0.000149,2]
[356991324,1743541832119,-157.94695179,0.00014958,2]
[356991325,1743541832128,-333.59813028,0.00014958,2]
[356991326,1743541832137,-509.40380115,0.00014973,2]
[356991327,1743541832147,-500.0,0.00014999,2]
[356991328,1743541832156,-405.98558796,0.00014999,2]
[356991329,1743541832166,-1005.5893,0.00014999,2]
[356991330,1743541832176,-31103.91250855,0.00015,2]
[356991331,1743541832188,-165758.5419245,0.00015,2]
[356991332,1743541832221,-43010.79713,0.00015,2]
[356991339,1743541837805,-9696.43,0.00015,2]
[356991431,1743541839933,-2325922.98462925,0.00015,2]
[356991432,1743541839943,-2285.67548027,0.00015058,2]
[356991433,1743541839952,-2285.67548021,0.00016022,2]
[356991434,1743541839962,-240.28,0.00016022,2]
[356991435,1743541839971,-150.99,0.00016022,2]
[356991436,1743541839980,-9027.15,0.00016119,2]
[356991437,1743541839989,-1089.28,0.00016119,2]
[356991438,1743541839998,-150.0,0.00016359,2]
[356991439,1743541840007,-150.0,0.00016359,2]
[356991440,1743541840015,-630.895,0.00016798,2]
[356991441,1743541840025,-2285.67548021,0.00016986,2]
[356991442,1743541840034,-299.7,0.00016986,2]
[356991443,1743541840043,-505.35,0.00016986,2]
[356991444,1743541840052,-188.8,0.00017573,2]
[356991445,1743541840062,-1000.0,0.00017647,2]
[356991446,1743541840071,-150.0,0.00017652,2]
[356991447,1743541840080,-23177.94,0.00017728,2]
[356991448,1743541840090,-500.0,0.00017802,3]
[356991449,1743541840100,-2285.67548021,0.00017951,2]
[356991450,1743541840109,-250.0,0.00018313,2]
[356991451,1743541840119,-5139.24,0.00018321,2]
[356991452,1743541840129,-1089.28,0.00018383,2]
[356991453,1743541840139,-200.0,0.00018438,2]
[356991454,1743541840149,-16152.33638976,0.00018814,2]
[356991455,1743541840159,-13029.0709775,0.00018817,2]
[356991456,1743541840168,-22812.1356125,0.00018817,2]
[356991457,1743541840178,-2285.67548021,0.00018915,2]
[356991458,1743541840188,-2040.0,0.00018984,2]
[356991459,1743541840198,-712.22,0.00018984,2]
[356991460,1743541840208,-1418.429,0.00018984,2]
[356991461,1743541840217,-1275.0,0.00018984,2]
[356991462,1743541840227,-789.0,0.00018984,2]
[356991463,1743541840237,-908.0,0.00018984,2]
[356991464,1743541840247,-1433.0,0.00018984,2]
[356991465,1743541840256,-4092.0,0.00018984,2]
[356991466,1743541840266,-543.0,0.00018984,2]
[356991467,1743541840276,-3949.0,0.00018997,2]
[356991468,1743541840286,-151.0,0.00018997,2]
[356991469,1743541840295,-1017.0,0.00018997,2]
[356991470,1743541840305,-1487.0602143,0.00019399,2]
[356991471,1743541840315,-1000.0,0.00019853,2]
[356991472,1743541840325,-2285.67548021,0.00019879,2]
[356991473,1743541840335,-174.02,0.00019971,2]
[356991474,1743541840345,-14393.0320094,0.0002,4]
[356991475,1743541840355,-7408.56216848,0.0002,2]
[356991476,1743541840366,-1000.0,0.0002,2]
[356991477,1743541840379,-150.81,0.0002,2]
[356991478,1743541840395,-150.81,0.0002,2]
[356991479,1743541840410,-150.81,0.0002,2]
[356991481,1743541840422,-150.81,0.0002,2]
[356991483,1743541840434,-150.81,0.0002,2]
[356991484,1743541840448,-150.81,0.0002,2]
[356991485,1743541840461,-150.81,0.0002,2]
[356991486,1743541840475,-150.81,0.0002,2]
[356991488,1743541840490,-150.81,0.0002,2]
[356991489,1743541840504,-150.81,0.0002,2]
[356991490,1743541840517,-150.81,0.0002,2]
[356991491,1743541840529,-150.81,0.0002,2]
[356991492,1743541840541,-150.81,0.0002,2]
[356991493,1743541840556,-8960.67482625,0.0002001,2]
[356991494,1743541840569,-4940.61743354,0.0002001,2]
[356991495,1743541840582,-5772.0,0.0002001,2]
[356991496,1743541840594,-416.37044589,0.00020102,2]
[356991497,1743541840607,-1667.83938895,0.0002015,2]
[356991498,1743541840621,-160.93,0.0002027,2]
[356991499,1743541840634,-500.0,0.00020275,2]
[356991500,1743541840648,-500.0,0.00020275,2]
[356991501,1743541840662,-1609.0,0.000203,2]
[356991502,1743541840675,-500.0,0.00020508,2]
[356991503,1743541840687,-175.56,0.00020548,2]
[356991504,1743541840700,-8605.58,0.00020548,2]
[356991505,1743541840712,-248.25767709,0.00020561,2]
[356991506,1743541840725,-1089.28,0.00020647,2]
[356991507,1743541840737,-21839.67809764,0.000207,2]
[356991508,1743541840752,-2285.67548021,0.00020843,2]
[356991509,1743541840764,-1000.0,0.00020888,2]
[356991510,1743541840776,-333.59813026,0.00020948,2]
[356991511,1743541840789,-19478.04266297,0.00021,2]
[356991512,1743541840799,-1546.06201985,0.00021,2]
[356991513,1743541840812,-188.8,0.00021088,2]
[356991514,1743541840824,-2000.0,0.00021552,4]
[356991515,1743541840838,-1981.54633629,0.000217,2]
[356991516,1743541840852,-150.81,0.0002179,2]
[356991517,1743541840864,-5434.0,0.000218,2]
[356991518,1743541840875,-2285.67548021,0.00021808,2]
[356991519,1743541840887,-150.0,0.00021917,2]
[356991520,1743541840899,-1500.0,0.00021918,20]
[356991521,1743541840916,-2040.0,0.00021984,2]